bitfinex/quotes_ETHUSD_20251119
["timestamp","ask_amount","ask_price","bid_price","bid_amount"]
[1763584354626,8.04855992,2915.7,2914.7,0.4618]
[1763584354829,0.80485599,2915.6,2914.7,0.4618]
[1763584355045,1.71184863,2915.6,2914.7,0.4618]
[1763584355245,0.80485599,2915.6,2914.7,0.4618]
[1763584355870,1.71184863,2915.6,2914.7,0.4618]
[1763584356562,0.80485599,2915.6,2914.7,0.4618]
[1763584356788,8.04855992,2916.6,2915.5,0.459]
[1763584356930,8.04855992,2916.6,2915.9,0.459]
[1763584357350,0.90699264,2916.5,2915.9,0.459]
[1763584357559,0.89555526,2916.4,2915.9,0.459]
[1763584357964,0.90699264,2916.5,2916.3,0.6523]
[1763584358139,0.002,2917.4,2916.5,0.467]
[1763584358344,0.90899264,2917.4,2916.3,0.1853]
[1763584358583,0.80505599,2917.3,2916.5,0.4742]
[1763584358881,0.103,2916.4,2915.8,0.1853]
[1763584359047,0.405504,2916.3,2915.8,0.1853]
[1763584359568,0.405504,2916.5,2915.9,0.4742]
[1763584359779,8.45406392,2916.5,2915.5,0.1853]
[1763584359978,8.45406392,2916.5,2915.2,0.4742]
[1763584359979,0.405504,2916.3,2915.2,0.4742]
[1763584360188,1.31249664,2915.9,2915.3,0.1853]
[1763584360479,1.31249664,2915.9,2915.1,0.6595]
[1763584360480,0.405504,2915.7,2915.1,0.6595]
[1763584361662,0.405504,2915.7,2915.2,0.4742]
[1763584363962,0.405504,2915.7,2915.6,0.467]
[1763584364548,0.93610566,2915.8,2915.6,0.9412]
[1763584365437,1.34160966,2915.8,2915.7,0.9412]
[1763584366440,1.34160966,2915.8,2915.4,0.4742]
[1763584366641,0.22506023,2915.7,2915.4,0.4742]
[1763584367470,0.63056423,2915.7,2915.1,0.1853]
[1763584367771,0.405504,2915.6,2915.1,0.1853]
[1763584367969,0.405504,2915.6,2915.2,0.4742]
[1763584368343,0.405504,2915.6,2915.5,0.467]
[1763584368859,0.405504,2915.6,2915.2,0.4742]
[1763584369184,8.04855992,2915.5,2915.1,0.1853]
[1763584369398,0.84540639,2915.4,2915.1,0.1853]
[1763584369961,0.84540639,2915.4,2915.1,0.6595]
[1763584370361,0.84540639,2915.4,2915.3,0.467]
[1763584371491,0.84540639,2915.4,2915.3,0.9412]
[1763584371659,0.405504,2915.6,2915.3,0.9412]
[1763584373192,0.90899264,2915.9,2915.1,0.1853]
[1763584373193,0.002,2915.9,2915.5,0.467]
[1763584373407,0.002,2918.0,2915.4,0.4742]
[1763584373408,8.04855992,2917.2,2915.8,0.467]
[1763584373583,8.04855992,2917.2,2915.4,0.4742]
[1763584373584,8.04855992,2917.2,2916.1,0.467]
[1763584373898,0.002,2917.7,2916.1,0.467]
[1763584374101,0.002,2917.7,2917.3,0.467]
[1763584374598,0.002,2917.7,2917.3,0.9412]
[1763584375166,0.002,2917.7,2917.3,0.467]
[1763584375565,0.002,2917.7,2917.1,0.1853]
[1763584375777,0.407504,2917.7,2917.1,0.1853]
[1763584376323,0.002,2917.7,2917.1,0.6595]
[1763584376520,0.407504,2917.7,2917.1,0.1853]
[1763584377025,0.407504,2917.7,2917.3,0.467]
[1763584377873,0.407504,2917.7,2917.3,0.9412]
[1763584378075,0.002,2917.7,2917.3,0.9412]
[1763584378288,0.002,2917.7,2917.3,0.467]
[1763584379000,0.002,2917.7,2917.3,0.9412]
[1763584379517,0.002,2917.7,2917.1,0.1853]
[1763584379820,0.002,2917.7,2917.1,0.6595]
[1763584379989,0.002,2917.7,2917.1,0.1853]
[1763584380191,0.002,2917.7,2916.9,0.1853]
[1763584380604,0.405504,2917.6,2916.9,0.1853]
[1763584380806,0.405504,2917.6,2916.0,0.1853]
[1763584381124,0.615404,2917.6,2916.2,0.4742]
[1763584381328,0.405504,2917.2,2916.2,0.4742]
[1763584381512,0.405504,2917.0,2916.2,0.4742]
[1763584382022,0.615404,2917.0,2916.0,0.1853]
[1763584382233,0.405504,2916.8,2916.0,0.1853]
[1763584382528,0.2099,2916.9,2915.3,0.001]
[1763584382529,0.405504,2916.0,2915.3,0.001]
[1763584382823,0.103,2915.9,2915.3,0.001]
[1763584384421,0.103,2915.9,2915.3,0.4752]
[1763584384591,0.405504,2916.3,2915.3,0.4752]
[1763584385442,0.2099,2916.8,2915.3,0.4752]
[1763584385443,1.31249664,2917.1,2916.2,0.6523]
[1763584385595,0.405504,2916.9,2916.2,0.6523]
[1763584385796,0.405504,2916.9,2916.0,0.1853]
[1763584386338,0.95709566,2917.0,2916.0,0.1853]
[1763584386632,0.405504,2916.9,2916.0,0.1853]
[1763584387812,0.95709566,2917.0,2916.1,0.181]
[1763584387813,0.405504,2916.7,2916.1,0.181]
[1763584388307,0.405504,2916.9,2916.1,0.181]
[1763584390634,0.2099,2918.6,2916.8,0.4856]
[1763584390834,0.2099,2918.6,2917.3,0.4856]
[1763584391205,1.11689264,2918.6,2917.3,0.9582]
[1763584391438,0.2099,2918.6,2917.3,0.9582]
[1763584391738,0.3129,2919.1,2917.3,0.9582]
[1763584392129,1.21989264,2919.1,2917.3,0.9582]
[1763584392431,0.3129,2919.1,2917.3,0.9582]
[1763584392633,0.405504,2919.0,2917.3,0.9582]
[1763584392837,8.06199669,2918.8,2917.3,0.9582]
[1763584393039,0.2099,2918.6,2917.3,0.9582]
[1763584393459,0.405504,2918.5,2917.3,0.9582]
[1763584393960,0.90699264,2918.7,2917.3,0.9582]
[1763584394480,0.405504,2918.6,2917.3,0.9582]
[1763584395053,0.103,2919.1,2917.3,0.9582]
[1763584395054,0.405504,2918.3,2917.3,0.9582]
[1763584395260,1.31249664,2918.3,2917.3,0.9582]
[1763584395453,0.107,2917.9,2917.3,0.9582]
[1763584396834,0.405504,2918.5,2917.3,0.9582]
[1763584397271,0.405504,2918.5,2917.3,1.0762]
[1763584397272,0.405504,2918.4,2917.3,1.0762]
[1763584397636,1.31249664,2918.1,2917.1,0.181]
[1763584397834,1.31249664,2918.1,2917.1,0.6536]
[1763584398231,0.405504,2918.1,2917.3,0.4856]
[1763584398964,1.31249664,2918.5,2917.3,0.9582]
[1763584400072,1.31249664,2918.1,2917.3,0.4856]
[1763584400562,1.31249664,2918.1,2917.1,0.181]
[1763584400787,0.405504,2918.1,2917.3,0.4856]
[1763584401192,8.06199669,2918.6,2917.3,0.9582]
[1763584401392,0.405504,2918.6,2917.3,0.9582]
[1763584402285,8.27189669,2919.0,2917.3,0.9582]
[1763584402487,0.405504,2918.9,2917.3,0.9582]
[1763584402797,0.90699264,2918.9,2917.3,0.9582]
[1763584403696,0.103,2919.1,2917.3,0.9582]
[1763584404061,0.002,2919.4,2917.7,8.06199669]
[1763584404264,0.002,2919.4,2917.9,0.4856]
[1763584404506,0.002,2919.4,2917.9,0.9582]
[1763584405197,0.103,2918.8,2917.9,0.9582]
[1763584405699,0.103,2918.9,2917.9,0.9582]
[1763584406268,0.002,2919.4,2917.9,0.9582]
[1763584406469,0.407504,2919.4,2917.9,0.9582]
[1763584406679,0.002,2919.4,2917.9,0.9582]
[1763584407978,0.103,2918.9,2917.9,0.9582]
[1763584408179,0.103,2918.9,2917.9,1.0762]
[1763584408883,0.2099,2918.5,2917.5,0.4737]
[1763584409391,0.2099,2918.2,2917.3,0.118]
[1763584409898,1.31249664,2918.5,2917.1,0.181]
[1763584409899,0.90699264,2918.5,2917.1,0.181]
[1763584410096,0.405504,2917.9,2917.1,0.299]
[1763584410680,0.405504,2917.9,2916.9,0.2985]
[1763584410681,0.2099,2917.9,2916.9,0.2985]
[1763584412275,0.407504,2918.0,2917.0,0.4737]
[1763584412601,0.002,2918.0,2917.0,0.4737]
[1763584413210,0.002,2918.0,2917.9,0.4571]
[1763584413410,0.002,2918.0,2917.9,0.9308]
[1763584415117,0.002,2918.2,2917.9,0.9308]
[1763584415316,0.002,2918.2,2918.1,0.6376]
[1763584415513,0.002,2918.2,2918.1,1.1113]
[1763584415844,0.90699264,2920.4,2919.3,0.1805]
[1763584416142,0.002,2920.9,2920.5,0.1805]
[1763584416451,0.002,2920.9,2920.5,0.2985]
[1763584416602,0.002,2920.9,2920.5,1.177704]
[1763584416797,0.109,2922.4,2920.8,0.405504]
[1763584417045,0.2159,2922.9,2921.2,0.90699264]
[1763584417333,0.2159,2922.9,2920.8,0.405504]
[1763584417334,0.109,2922.9,2921.6,1.25039264]
[1763584417743,0.109,2922.9,2921.7,0.4688]
[1763584417909,0.109,2922.9,2921.8,0.17191926]
[1763584418109,0.109,2922.9,2921.9,0.118]
[1763584418328,0.109,2922.9,2921.9,0.5868]
[1763584418502,0.109,2922.9,2922.0,0.4688]
[1763584418896,0.109,2922.9,2922.1,0.1801]
[1763584419099,0.109,2922.9,2921.4,0.1801]
[1763584419100,0.2159,2922.8,2921.4,0.1801]
[1763584419296,0.405504,2922.7,2921.4,0.2981]
[1763584419732,0.109,2922.9,2921.5,0.4688]
[1763584419946,0.3249,2922.9,2921.5,0.4688]
[1763584420146,0.405504,2922.8,2921.4,0.1801]
[1763584420327,0.621404,2922.8,2921.6,0.118]
[1763584420631,0.2159,2922.7,2921.6,0.118]
[1763584421036,0.109,2922.9,2921.6,0.5868]
[1763584421398,0.109,2922.9,2921.7,0.4688]
[1763584422614,0.109,2922.9,2921.8,0.118]
[1763584422806,0.3249,2922.9,2921.9,0.118]
[1763584423201,0.3249,2922.9,2921.7,0.4688]
[1763584423428,0.2159,2922.8,2921.8,0.118]
[1763584424129,0.109,2922.9,2921.8,0.118]
[1763584424327,0.109,2922.9,2921.8,0.5868]
[1763584424524,0.2159,2923.5,2921.9,0.4688]
[1763584424825,0.109,2922.9,2922.0,0.118]
[1763584425027,0.109,2922.9,2922.1,0.4688]
[1763584425460,0.2159,2923.5,2922.1,0.4688]
[1763584427530,0.17533913,2923.5,2922.1,0.4688]
[1763584428362,0.17533913,2923.5,2922.2,0.118]
[1763584428749,0.405504,2923.4,2921.4,0.1801]
[1763584428983,0.405504,2923.4,2921.7,0.4688]
[1763584429644,0.405504,2923.2,2921.7,0.4688]
[1763584429854,1.31249664,2923.0,2921.4,0.1801]
[1763584430145,0.405504,2922.8,2921.4,0.1801]
[1763584430360,0.2437,2922.7,2921.4,0.1801]
[1763584430557,0.2437,2922.7,2921.5,0.4688]
[1763584430761,0.1753,2922.6,2921.4,0.1801]
[1763584431472,0.0684,2922.7,2921.5,0.4688]
[1763584432179,0.002,2923.5,2922.6,0.4778]
[1763584432403,0.002,2923.5,2923.4,0.6579]
[1763584432674,0.002,2923.5,2923.4,0.6489]
[1763584432878,0.002,2923.5,2923.4,0.1801]
[1763584433270,0.002,2923.5,2923.4,0.6489]
[1763584433878,0.002,2923.5,2923.4,0.1801]
[1763584434471,0.002,2923.5,2923.4,0.6489]
[1763584436484,0.002,2923.5,2923.4,1.1267]
[1763584437444,0.002,2923.8,2923.4,1.1267]
[1763584437648,0.002,2923.8,2923.7,0.4778]
[1763584437873,0.002,2923.8,2923.7,0.66315926]
[1763584438067,0.002,2923.8,2923.7,1.24995926]
[1763584438380,0.002,2923.8,2923.7,1.13195926]
[1763584438577,0.002,2923.8,2923.7,1.24995926]
[1763584441511,0.002,2924.1,2923.8,0.90699264]
[1763584441720,0.002,2924.1,2923.8,0.4688]
[1763584441903,0.002,2924.1,2923.5,0.4688]
[1763584442220,0.002,2924.1,2923.6,0.118]
[1763584442517,0.002,2924.1,2923.4,0.1801]
[1763584442694,0.002,2924.1,2923.5,0.5868]
[1763584443102,0.002,2924.1,2923.5,0.118]
[1763584443419,0.002,2924.1,2923.6,0.4688]
[1763584443913,0.002,2924.1,2923.7,0.118]
[1763584444080,0.002,2924.1,2923.8,0.4688]
[1763584444276,0.002,2924.1,2924.0,0.4778]
[1763584444715,0.002,2924.1,2924.0,0.9466]
[1763584445512,0.002,2924.1,2924.0,1.13195926]
[1763584446301,0.002,2924.1,2924.0,1.24995926]
[1763584446722,0.002,2924.1,2924.0,1.13195926]
[1763584446926,0.002,2924.1,2924.0,1.24995926]
[1763584447603,0.0684,2926.0,2924.0,1.24995926]
[1763584447936,5.22580505,2927.0,2925.9,0.1859]
[1763584448238,0.70858051,2926.9,2926.0,0.118]
[1763584448440,0.70858051,2926.9,2925.5,0.1859]
[1763584448735,0.1753,2926.8,2925.6,0.118]
[1763584448934,0.75120856,2926.8,2925.7,0.118]
[1763584449534,0.1753,2926.7,2925.7,0.118]
[1763584449736,0.57590856,2926.8,2925.7,0.5682]
[1763584449938,5.05050505,2927.0,2925.8,0.118]
[1763584450102,5.05050505,2927.0,2925.9,0.4502]
[1763584450433,5.05050505,2927.0,2925.6,0.1859]
[1763584450434,0.1753,2926.9,2925.6,0.1859]
[1763584450632,0.1753,2926.9,2926.0,0.118]
[1763584450820,0.5225805,2926.8,2926.1,0.118]
[1763584451023,0.5225805,2926.8,2925.6,0.6361]
[1763584451226,0.1753,2926.7,2925.6,0.1859]
[1763584451438,0.0684,2925.7,2924.7,0.4502]
[1763584451613,0.0684,2925.7,2924.0,0.18635926]
[1763584451614,0.1753,2926.7,2925.1,0.7541]
[1763584451815,0.1753,2926.6,2925.1,1.66109264]
[1763584452014,0.1753,2926.6,2925.2,0.4502]
[1763584452316,0.1753,2927.1,2925.4,8.02272465]
[1763584452638,0.1753,2926.9,2925.2,0.4502]
[1763584452838,0.1753,2926.9,2924.3,0.405504]
[1763584452839,0.405504,2926.8,2924.8,0.4502]
[1763584453139,1.31249664,2926.6,2924.2,0.4502]
[1763584453443,0.405504,2926.4,2924.3,0.5682]
[1763584453641,0.405504,2926.2,2924.5,8.02272465]
[1763584453843,0.405504,2926.2,2924.6,0.90699264]
[1763584454041,0.1753,2926.1,2924.7,0.4502]
[1763584454855,0.1753,2926.1,2924.8,0.118]
[1763584455347,0.0684,2924.9,2924.1,0.1801]
[1763584455533,0.0684,2924.9,2924.0,0.001]
[1763584455734,0.0684,2924.9,2924.0,0.119]
[1763584455941,0.0684,2924.9,2924.1,0.1859]
[1763584456562,0.0684,2924.9,2924.0,0.119]
[1763584456563,0.1753,2924.8,2924.0,0.119]
[1763584457355,0.1753,2924.8,2924.1,0.118]
[1763584457854,0.1753,2924.8,2924.0,0.001]
[1763584458756,0.0684,2924.9,2924.0,0.001]
[1763584458757,0.0684,2924.9,2924.1,0.1859]
[1763584459729,0.0684,2924.9,2924.1,0.6361]
[1763584460462,0.0684,2924.9,2924.2,0.118]
[1763584460757,0.0684,2925.1,2924.2,0.118]
[1763584460972,0.0684,2925.1,2924.0,0.001]
[1763584461177,0.1753,2925.0,2924.0,0.001]
[1763584461390,0.405504,2924.9,2924.0,0.001]
[1763584461569,0.1753,2924.1,2924.0,0.001]
[1763584461773,0.0684,2925.1,2924.0,0.001]
[1763584461774,0.1753,2924.8,2924.0,0.001]
[1763584462137,0.473904,2925.1,2924.0,0.001]
[1763584462338,0.1753,2924.7,2924.0,0.001]
[1763584463093,0.1753,2924.1,2924.0,0.001]
[1763584463438,0.3506,2924.1,2924.0,0.001]
[1763584465177,0.3506,2924.1,2923.7,0.001]
[1763584465178,0.756104,2924.1,2923.7,0.001]
[1763584465357,0.687804,2923.8,2923.7,0.001]
[1763584465791,0.863104,2923.8,2923.7,0.001]
[1763584466397,0.2823,2923.8,2923.7,0.001]
[1763584467475,0.4576,2923.8,2923.7,0.001]
[1763584467651,4.0676,2923.8,2923.7,0.001]
[1763584467854,0.86436,2923.8,2923.7,0.001]
[1763584468176,0.4576,2923.8,2923.7,0.001]
[1763584468969,0.3576,2923.8,2923.7,0.001]
[1763584469270,0.2576,2923.8,2923.7,0.001]
[1763584469675,0.1823,2923.8,2923.7,0.001]
[1763584469858,0.2576,2923.8,2923.7,0.001]
[1763584470654,0.1823,2923.8,2923.7,0.001]
[1763584470853,0.107,2923.8,2923.7,0.001]
[1763584471065,0.0753,2924.6,2923.7,0.001]
[1763584471379,0.0704,2925.1,2923.7,0.001]
[1763584471594,0.0704,2925.1,2923.7,0.4533]
[1763584472057,0.0704,2925.1,2923.8,0.118]
[1763584472248,0.0704,2925.1,2923.9,0.5703]
[1763584472446,0.002,2925.1,2923.9,0.5703]
[1763584472661,0.002,2925.1,2925.0,0.186]
[1763584473346,0.002,2925.1,2925.0,1.0988]
[1763584473978,0.61327977,2926.8,2925.3,0.6465]
[1763584474144,0.0753,2926.9,2925.8,0.4605]
[1763584474579,0.0753,2926.9,2925.9,0.118]
[1763584474799,0.0753,2926.9,2925.8,0.9128]
[1763584474800,0.0753,2926.9,2925.8,1.0308]
[1763584474998,0.0753,2926.9,2925.8,0.4605]
[1763584475144,1.06359264,2926.9,2925.3,0.186]
[1763584475347,0.405504,2926.7,2925.0,0.186]
[1763584475547,0.405504,2926.7,2925.1,0.4523]
[1763584475792,0.405504,2926.5,2925.1,0.4523]
[1763584476291,0.486804,2926.5,2925.1,0.5703]
[1763584476442,0.0813,2926.4,2925.1,0.4523]
[1763584476643,0.0813,2926.4,2925.2,0.4523]
[1763584477067,0.405504,2926.7,2925.2,0.4523]
[1763584477269,0.486804,2926.7,2925.2,0.4523]
[1763584477444,0.405504,2926.5,2925.2,0.4523]
[1763584477886,0.405504,2926.3,2924.6,0.4686]
[1763584478256,0.405504,2926.7,2924.6,0.4686]
[1763584478852,0.486804,2926.7,2924.6,0.4686]
[1763584479553,0.405504,2926.5,2924.7,0.118]
[1763584480013,0.405504,2926.5,2924.8,0.4623]
[1763584480414,0.405504,2926.3,2924.8,0.4623]
[1763584480617,0.61140977,2926.8,2924.9,0.118]
[1763584480917,0.61140977,2926.8,2925.0,0.118]
[1763584480918,0.0813,2926.7,2925.0,0.118]
[1763584481094,0.405504,2926.6,2925.1,0.7753]
[1763584481290,0.0813,2926.7,2925.1,0.7753]
[1763584481490,0.405504,2926.7,2925.2,0.4623]
[1763584482013,0.486804,2926.7,2925.2,0.4623]
[1763584482712,0.61355464,2926.7,2925.2,0.4623]
[1763584483282,0.69485464,2926.7,2925.2,0.4623]
[1763584483482,0.61355464,2926.7,2925.1,0.195]
[1763584483679,0.0813,2926.6,2925.1,0.195]
[1763584483883,0.0813,2926.6,2925.1,0.6573]
[1763584484424,0.0813,2926.6,2925.2,0.4623]
[1763584484822,0.61355464,2926.7,2924.9,0.118]
[1763584484823,0.405504,2926.4,2924.9,0.118]
[1763584485188,0.486804,2926.4,2925.0,0.4623]
[1763584485700,0.486804,2926.4,2925.1,0.195]
[1763584486219,0.0813,2926.3,2925.1,0.6573]
[1763584487431,0.405504,2926.2,2925.1,0.195]
[1763584487587,0.0813,2926.3,2925.2,0.4623]
[1763584488009,0.407504,2926.6,2925.2,0.4623]
[1763584489089,0.0813,2926.5,2925.2,0.4623]
[1763584489388,0.405504,2926.4,2925.1,0.195]
[1763584489614,0.0813,2926.5,2925.0,0.001]
[1763584489615,0.405504,2926.2,2925.0,0.001]
[1763584490110,0.0813,2926.1,2925.0,0.001]
[1763584490719,0.0813,2926.1,2925.1,0.195]
[1763584491221,0.002,2926.6,2925.2,0.4623]
[1763584491390,0.0813,2926.4,2925.2,0.4623]
[1763584494188,0.002,2926.6,2925.2,0.4623]
[1763584495436,0.0813,2926.5,2925.2,0.4623]
[1763584497031,0.405504,2926.4,2925.2,0.4623]
[1763584497495,0.0813,2926.4,2925.2,0.4623]
[1763584498044,0.405504,2926.3,2925.2,0.4623]
[1763584498709,0.405504,2926.3,2925.0,0.001]
[1763584498710,0.0813,2925.3,2925.0,0.001]
[1763584498903,0.405504,2926.1,2925.0,0.001]
[1763584499225,0.486804,2926.1,2925.0,0.001]
[1763584499411,0.405504,2925.9,2925.0,0.001]
[1763584499816,0.405504,2926.2,2925.0,0.001]
[1763584500127,0.405504,2925.7,2925.0,0.001]
[1763584500531,0.0813,2925.7,2925.0,0.001]
[1763584500832,0.0813,2926.1,2925.1,0.195]
[1763584501031,0.405504,2926.0,2925.1,0.195]
[1763584501333,0.0813,2926.1,2925.1,0.195]
[1763584501535,0.61140977,2926.8,2925.2,0.4623]
[1763584502033,0.61140977,2926.8,2925.2,0.5803]
[1763584502234,0.1566,2926.9,2925.2,0.5803]
[1763584502533,0.1566,2926.9,2925.3,0.4623]
[1763584502725,0.0753,2926.9,2925.3,0.4623]
[1763584503039,0.0813,2927.3,2926.5,0.6809]
[1763584503402,0.0813,2927.3,2926.5,1.1432]
[1763584503600,0.0813,2927.3,2926.2,0.195]
[1763584503832,0.0813,2927.2,2926.2,0.195]
[1763584504002,0.405504,2926.9,2926.2,0.195]
[1763584504199,0.405504,2926.9,2926.3,0.4623]
[1763584504502,0.0813,2927.3,2926.3,0.4623]
[1763584504705,0.90899264,2926.9,2926.2,0.195]
[1763584505012,0.90899264,2926.9,2925.6,0.195]
[1763584505013,0.405504,2926.2,2925.6,0.195]
[1763584505420,0.405504,2926.5,2925.6,0.195]
[1763584506049,0.002,2926.6,2925.7,0.4623]
[1763584506459,0.002,2926.6,2925.6,0.195]
[1763584506753,0.0833,2926.6,2925.6,0.195]
[1763584506972,0.002,2926.6,2925.6,0.6573]
[1763584507148,0.002,2926.6,2926.5,0.4859]
[1763584507814,0.002,2926.6,2926.5,0.9482]
[1763584509896,0.002,2926.6,2926.0,0.4803]
[1763584511159,0.002,2926.6,2926.5,0.4971]
[1763584511518,0.002,2926.6,2926.5,0.9774]
[1763584511717,0.002,2926.9,2926.5,1.0954]
[1763584512025,0.002,2926.9,2925.9,0.90699264]
[1763584512026,0.002,2926.9,2926.8,0.4971]
[1763584512415,0.002,2926.9,2926.8,1.0954]
[1763584516335,0.407504,2926.9,2926.4,0.4803]
[1763584516535,0.407504,2926.9,2926.8,0.4971]
[1763584516730,0.407504,2926.9,2926.5,0.118]
[1763584517069,0.002,2926.9,2926.8,0.4971]
[1763584517483,5.05050505,2927.0,2926.8,0.9774]
[1763584517697,5.05050505,2927.0,2926.9,0.4971]
[1763584517698,4.55050505,2927.0,2926.9,0.4971]
[1763584517850,4.55050505,2927.0,2926.9,0.9774]
[1763584518781,4.55050505,2927.0,2926.9,1.0954]
[1763584519257,4.55050505,2927.0,2926.9,0.9774]
[1763584519461,4.55050505,2927.0,2926.9,0.4971]
[1763584519771,4.55050505,2927.0,2926.4,0.90699264]
[1763584519973,4.55050505,2927.0,2926.3,8.48715382]
[1763584520160,4.55050505,2927.0,2926.3,0.4803]
[1763584520337,4.55050505,2927.0,2926.4,0.118]
[1763584520540,0.572804,2926.9,2925.9,8.00685382]
[1763584520773,0.572804,2926.9,2926.0,1.50529264]
[1763584520938,0.572804,2926.9,2926.1,0.118]
[1763584521139,0.405504,2926.9,2926.1,0.5983]
[1763584521676,0.572804,2926.9,2926.2,0.118]
[1763584522341,0.572804,2926.9,2925.8,0.4803]
[1763584522561,0.572804,2926.9,2925.9,0.118]
[1763584522752,0.574804,2926.9,2925.9,0.118]
[1763584522962,0.574804,2926.9,2925.9,0.5983]
[1763584523160,0.407504,2926.9,2925.9,0.5983]
[1763584523361,0.407504,2926.9,2926.8,0.4971]
[1763584523362,0.002,2926.9,2926.8,0.4971]
[1763584523896,0.002,2926.9,2926.8,1.0954]
[1763584524545,0.002,2926.9,2926.4,0.4803]
[1763584524844,0.002,2926.9,2926.5,0.118]
[1763584525244,0.002,2926.9,2926.8,0.4971]
[1763584525651,0.002,2926.9,2926.8,0.9774]
[1763584525851,0.002,2926.9,2926.8,1.0954]
[1763584526094,0.002,2926.9,2926.8,0.9774]
[1763584526302,0.002,2926.9,2926.8,1.0954]
[1763584526685,0.002,2926.9,2926.8,0.9774]
[1763584527061,0.002,2926.9,2926.8,1.0954]
[1763584528057,0.002,2926.9,2925.8,0.3434]
[1763584528058,0.002,2926.9,2926.1,8.00685382]
[1763584528287,0.002,2926.9,2926.8,0.4563]
[1763584528470,0.002,2926.9,2926.8,0.5743]
[1763584528678,0.002,2926.9,2926.8,1.0374]
[1763584529133,0.002,2926.9,2926.8,1.3808]
[1763584529425,4.37590505,2927.0,2926.8,1.3808]
[1763584529721,0.1673,2927.9,2927.0,0.3434]
[1763584529925,0.1673,2927.9,2927.1,0.3166]
[1763584529926,0.405504,2927.8,2927.1,0.3166]
[1763584530130,0.405504,2927.8,2927.1,0.1986]
[1763584530433,0.405504,2927.8,2927.2,0.118]
[1763584530920,0.884504,2927.8,2927.2,0.118]
[1763584531429,0.884504,2927.8,2926.6,0.4631]
[1763584531724,0.4844,2927.3,2926.7,0.118]
[1763584531890,0.0649,2927.7,2926.7,0.118]
[1763584532096,0.405504,2927.6,2926.7,0.118]
[1763584532297,0.405504,2927.6,2926.8,0.4631]
[1763584532677,0.405504,2927.8,2926.8,0.4631]
[1763584533438,0.884504,2927.8,2926.8,0.4631]
[1763584533723,0.884504,2927.8,2926.9,0.118]
[1763584534024,0.405504,2927.8,2926.9,0.5811]
[1763584534335,0.1673,2927.9,2926.9,0.9245]
[1763584534495,0.1673,2927.9,2927.0,0.4631]
[1763584534696,0.1673,2927.9,2927.1,0.1986]
[1763584534883,0.405504,2928.1,2927.1,0.1986]
[1763584535083,0.405504,2928.1,2927.1,0.6617]
[1763584535288,0.5623,2928.7,2927.2,0.3434]
[1763584535519,0.405504,2928.6,2927.2,8.81335382]
[1763584535721,0.0833,2928.7,2927.3,1.25039264]
[1763584536032,0.0833,2928.7,2927.4,0.5811]
[1763584536422,0.0833,2928.7,2927.6,8.00685382]
[1763584536612,0.6463,2929.1,2927.6,8.00685382]
[1763584536807,0.6463,2929.1,2928.0,8.00685382]
[1763584536808,0.1673,2929.1,2928.0,8.00685382]
[1763584537040,5.05050505,2929.2,2928.1,0.5811]
[1763584537427,5.05050505,2929.2,2928.2,0.4631]
[1763584538768,5.05050505,2929.2,2928.4,8.00685382]
[1763584538945,5.05050505,2929.2,2929.1,0.6877]
[1763584539147,5.05050505,2929.2,2929.1,0.8057]
[1763584539355,5.05050505,2929.2,2929.1,1.2943]
[1763584539720,5.05050505,2929.2,2929.1,1.1763]
[1763584539946,5.05050505,2929.2,2929.1,1.2943]
[1763584540151,5.05050505,2929.2,2928.6,0.191]
[1763584540448,5.05050505,2929.2,2929.1,0.6877]
[1763584540836,5.05050505,2929.2,2929.1,1.1763]
[1763584541029,5.05050505,2929.2,2929.1,1.2943]
[1763584541348,5.05050505,2929.2,2928.7,0.4886]
[1763584541524,5.05050505,2929.2,2929.1,0.118]
[1763584541925,5.05250505,2929.2,2929.1,0.118]
[1763584542564,5.05250505,2929.2,2928.6,0.191]
[1763584542725,0.405504,2929.1,2928.7,0.118]
[1763584543052,0.469604,2929.1,2928.3,0.191]
[1763584543258,0.469604,2929.1,2928.4,0.118]
[1763584543661,0.405504,2929.1,2927.6,8.00685382]
[1763584543902,0.405504,2929.1,2928.1,0.6066]
[1763584544452,0.872704,2929.1,2928.1,0.4886]
[1763584544687,0.405504,2928.9,2928.2,0.118]
[1763584544874,5.05250505,2929.2,2928.1,0.4886]
[1763584545179,5.05250505,2929.2,2928.3,0.118]
[1763584545398,5.05250505,2929.2,2928.1,0.4886]
[1763584545605,1.31249664,2929.1,2928.1,0.4886]
[1763584545811,5.05250505,2929.2,2928.4,8.00685382]
[1763584546085,5.05250505,2929.2,2929.1,0.6877]
[1763584546283,5.05250505,2929.2,2929.1,0.8057]
[1763584546603,5.05250505,2929.2,2929.1,1.2943]
[1763584547619,5.05250505,2929.2,2929.1,1.1763]
[1763584547950,5.05250505,2929.2,2929.1,1.2943]
[1763584548380,4.70980505,2929.2,2929.1,1.2943]
[1763584548551,4.70980505,2929.2,2929.1,1.6368]
[1763584549552,4.70770505,2929.2,2929.1,1.6368]
[1763584550383,4.70770505,2929.2,2929.1,1.5188]
[1763584550706,4.70770505,2929.2,2929.1,1.2943]
[1763584551203,4.70770505,2929.2,2929.1,1.6368]